fUST/lending_fUST_20251123
["ID","MTS","AMOUNT","RATE_DAILY","PERIOD"]
[394661396,1763834461998,-231.86576167,6.368e-05,2]
[394661397,1763834463547,-265.37778853,6.368e-05,2]
[394661398,1763834466164,-192.00843584,6.368e-05,2]
[394661399,1763834466186,-36.64090391,6.432e-05,2]
[394661400,1763834468895,-280.98071383,6.432e-05,2]
[394661401,1763834470796,-242.36129342,6.432e-05,2]
[394661402,1763834473987,-200.95741177,6.432e-05,2]
[394661403,1763834476023,-300.0,6.432e-05,2]
[394661404,1763834478932,-271.69504133,6.368e-05,2]
[394661405,1763834495226,-135.5503977,6.368e-05,2]
[394661406,1763834495252,-134.61651978,6.4e-05,2]
[394661407,1763834497262,-74.73614055,6.4e-05,2]
[394661408,1763834497285,-107.24543903,6.432e-05,2]
[394661409,1763834497306,-73.32569695,6.433e-05,2]
[394661410,1763834499995,-67.08508889,6.433e-05,2]
[394661411,1763834500017,-169.69070441,6.433e-05,2]
[394661412,1763834502731,-223.09755959,6.433e-05,2]
[394661413,1763834503764,166.888,6.324e-05,2]
[394661414,1763834506502,-107.211736,6.433e-05,2]
[394661415,1763834506523,-84.78931861,6.433e-05,2]
[394661416,1763834510198,-377.7558876,6.368e-05,2]
[394661417,1763834512899,-179.28524712,6.368e-05,2]
[394661418,1763834514976,-235.35880061,6.368e-05,2]
[394661419,1763834517600,-459.58763066,6.368e-05,2]
[394661420,1763834519621,-207.70071421,6.368e-05,2]
[394661421,1763834521643,-360.5417134,6.368e-05,2]
[394661422,1763834523288,-746.91541956,6.304e-05,2]
[394661423,1763834523782,-295.80552436,6.368e-05,2]
[394661424,1763834525808,-90.5681818,6.368e-05,2]
[394661425,1763834525831,-74.63827926,6.432e-05,2]
[394661426,1763834527943,-186.24481626,6.432e-05,2]
[394661427,1763834531303,-225.36172074,6.368e-05,2]
[394661428,1763834531328,-39.11690448,6.432e-05,2]
[394661429,1763834531352,-340.23392781,6.433e-05,2]
[394661431,1763834535656,-8.36615891,6.433e-05,2]
[394661432,1763834535690,-145.27593521,6.433e-05,2]
[394661433,1763834537211,-153.95640602,6.433e-05,2]
[394661434,1763834554099,-200.76765877,6.368e-05,2]
[394661435,1763834554123,-58.35369605,6.433e-05,2]
[394661436,1763834554605,200.76765877,6.304e-05,2]
[394661437,1763834557057,-142.41396272,6.433e-05,2]
[394661438,1763834557086,-119.92526289,6.452e-05,2]
[394661439,1763834558483,-446.215756,6.452e-05,2]
[394661440,1763834559922,-384.21283943,6.452e-05,2]
[394661441,1763834561507,-202.73116124,6.452e-05,2]
[394661442,1763834569112,-323.1023012,6.451e-05,2]
[394661443,1763834570662,-236.26636366,6.387e-05,2]
[394661444,1763834573888,-469.53624918,6.387e-05,2]
[394661445,1763834575443,-226.87864518,6.387e-05,2]
[394661446,1763834577539,-351.03692855,6.387e-05,2]
[394661447,1763834580206,-300.0,6.323e-05,2]
[394661448,1763834584500,-158.11220794,6.323e-05,2]
[394661449,1763834586539,-165.20419547,6.323e-05,2]
[394661450,1763834588683,-300.0,6.323e-05,2]
[394661451,1763834590112,-300.0222215,6.323e-05,2]
[394661452,1763834593308,-209.37512026,6.323e-05,2]
[394661453,1763834594799,-217.36372703,6.323e-05,2]
[394661454,1763834597098,-178.74595623,6.323e-05,2]
[394661455,1763834601338,-0.59721649,6.323e-05,2]
[394661456,1763834601361,-211.43809544,6.387e-05,2]
[394661457,1763834604209,-229.2473945,6.387e-05,2]
[394661458,1763834606222,-175.94239484,6.387e-05,2]
[394661459,1763834607687,-229.29521031,6.387e-05,2]
[394661460,1763834610102,-210.33789322,6.387e-05,2]
[394661461,1763834611678,-400.60533716,6.387e-05,2]
[394661462,1763834615787,-21.5173909,6.387e-05,2]
[394661463,1763834615809,-150.8976988,6.451e-05,2]
[394661464,1763834615831,-185.72510429,6.451e-05,2]
[394661465,1763834629855,-114.27489571,6.451e-05,2]
[394661466,1763834629878,-235.92759792,6.452e-05,2]
[394661467,1763834631476,-272.42884324,6.452e-05,2]
[394661468,1763834631498,-13.15429611,6.452e-05,2]
[394661469,1763834634039,-204.6806103,6.452e-05,2]
[394661470,1763834635544,-282.16509359,6.452e-05,2]
[394661471,1763834635567,-173.42152208,6.452e-05,2]
[394661472,1763834638031,-242.84001876,6.387e-05,2]
[394661473,1763834639516,-170.35032243,6.387e-05,2]
[394661474,1763834642089,-200.55036832,6.387e-05,2]
[394661475,1763834644443,1317.64866565,6.323e-05,2]
[394661476,1763834645155,-174.04848096,6.387e-05,2]
[394661477,1763834647777,-259.42916618,6.387e-05,2]
[394661478,1763834651141,-172.04244832,6.387e-05,2]
[394661479,1763834654782,-327.14226415,6.387e-05,2]
[394661480,1763834659618,-184.43593772,6.387e-05,2]
[394661481,1763834659643,-12.79522365,6.452e-05,2]
[394661482,1763834661413,-48.76186989,6.452e-05,2]
[394661483,1763834661440,-285.43572022,6.452e-05,2]
[394661484,1763834664860,-233.33112594,6.452e-05,2]
[394661485,1763834664884,-66.97045653,6.452e-05,2]
[394661486,1763834666348,-199.69841753,6.452e-05,2]
[394661487,1763834669553,-204.41545471,6.387e-05,2]
[394661488,1763834671261,-210.3064887,6.387e-05,2]
[394661489,1763834672732,-279.48265412,6.387e-05,2]
[394661490,1763834675310,-194.0,6.387e-05,2]
[394661491,1763834678600,-378.13958853,6.387e-05,2]
[394661492,1763834682849,-266.47809034,6.387e-05,2]
[394661493,1763834685595,-241.5464534,6.387e-05,2]
[394661494,1763834688835,-204.89698439,6.387e-05,2]
[394661495,1763834691438,-254.06541175,6.387e-05,2]
[394661496,1763834691461,-45.93458825,6.452e-05,2]
[394661497,1763834693978,-187.39653769,6.452e-05,2]
[394661498,1763834694006,-45.41625542,6.452e-05,2]
[394661499,1763834696091,-198.3925409,6.452e-05,2]
[394661500,1763834700480,-250.82962637,6.452e-05,2]
[394661501,1763834702032,-5.36157731,6.452e-05,2]
[394661502,1763834702062,-223.71530014,6.452e-05,2]
[394661503,1763834703607,-188.48899704,6.452e-05,2]
[394661504,1763834706451,-87.79570282,6.452e-05,2]
[394661505,1763834706479,-108.22512552,6.452e-05,2]
[394661506,1763834710137,-229.48350012,6.452e-05,2]
[394661507,1763834712128,-156.92979705,6.452e-05,2]
[394661508,1763834715265,-5.36157731,6.452e-05,2]
[394661509,1763834715288,-191.73113486,6.452e-05,2]
[394661510,1763834719189,-108.26886514,6.452e-05,2]
[394661511,1763834719211,-74.73113486,6.452e-05,2]
[394661512,1763834721945,-225.26886514,6.452e-05,2]
[394661513,1763834721967,-35.40547874,6.452e-05,2]
[394661514,1763834724161,-300.0,6.452e-05,2]
[394661515,1763834726281,-230.35178999,6.452e-05,2]
[394661516,1763834728280,-247.34662754,6.452e-05,2]
[394661517,1763834731893,-319.58767121,6.452e-05,2]
[394661518,1763834736348,-67.30843252,6.452e-05,2]
[394661519,1763834736377,-112.77438426,6.453e-05,2]
[394661520,1763834738359,-261.94685521,6.453e-05,2]
[394661521,1763834740315,-152.0550624,6.453e-05,2]
[394661522,1763834742998,-271.9276984,6.453e-05,2]
[394661523,1763834747390,-156.63332435,6.453e-05,2]
[394661524,1763834750776,-355.97650933,6.453e-05,2]
[394661525,1763834752321,-325.58444253,6.453e-05,2]
[394661526,1763834755657,-187.88373674,6.453e-05,2]
[394661527,1763834758405,-166.84898511,6.453e-05,2]
[394661528,1763834766118,-297.41554609,6.452e-05,2]
[394661529,1763834769429,-2.58445391,6.452e-05,2]
[394661530,1763834769454,-148.46699531,6.453e-05,2]
[394661531,1763834771496,-185.55938604,6.453e-05,2]
[394661532,1763834774126,-174.41555747,6.453e-05,2]
[394661533,1763834776297,-280.35281112,6.453e-05,2]
[394661534,1763834778465,-215.64959454,6.453e-05,2]
[394661535,1763834954586,10000.01,6.353e-05,2]
[394661536,1763834965714,-8435.6898087,6.353e-05,2]
[394661564,1763835032559,-1999.99,6.164e-05,2]
[394661565,1763835032570,-1999.99,6.226e-05,2]
[394661566,1763835032579,-1999.99,6.289e-05,2]
[394661567,1763835032588,-500.0,6.333e-05,2]
[394661568,1763835032598,-500.0,6.333e-05,2]
[394661569,1763835032607,-501.53740374,6.333e-05,2]
[394661570,1763835032616,-390.92221377,6.333e-05,2]
[394661571,1763835032626,-407.65917973,6.352e-05,2]
[394661572,1763835032635,-300.0,6.352e-05,2]
[394661573,1763835032644,-1200.0,6.352e-05,2]
[394661574,1763835032653,-2556.21120278,6.353e-05,2]
[394661575,1763835032665,-37404.98740138,6.353e-05,2]
[394661577,1763835032675,-892.14314888,6.353e-05,2]
[394661578,1763835032688,-1032.76313888,6.353e-05,2]
[394661613,1763835040652,-953.22923586,6.102e-05,2]
[394661615,1763835040661,-500.0,6.352e-05,2]
[394661617,1763835040671,-500.0,6.352e-05,2]
[394661619,1763835040680,-500.0,6.352e-05,2]
[394661621,1763835040688,-500.0,6.352e-05,2]
[394661623,1763835040698,-500.0,6.352e-05,2]
[394661625,1763835040709,-208.59649772,6.352e-05,2]
[394661626,1763835040718,-184.57867038,6.352e-05,2]
[394661627,1763835040728,-500.0,6.352e-05,2]
[394661628,1763835040737,-500.0,6.352e-05,2]
[394661629,1763835040747,-500.0,6.352e-05,2]
[394661630,1763835040756,-500.0,6.352e-05,2]
[394661631,1763835040766,-500.0,6.352e-05,2]
[394661632,1763835040776,-500.0,6.352e-05,2]
[394661633,1763835040787,-1553.59559604,6.353e-05,2]
[394661634,1763835042807,-2e-08,6.353e-05,2]
[394661674,1763835045540,-42190.8864,6.353e-05,2]
[394661679,1763835506568,-166.88939201,5.98e-05,2]
[394661680,1763835506597,-166.88939201,6.04e-05,2]
[394661681,1763835506622,-150.0,6.071e-05,2]
[394661682,1763835506649,-166.88939201,6.101e-05,2]
[394661683,1763835506674,-166.88939201,6.226e-05,2]
[394661684,1763835506698,-500.0,6.333e-05,2]
[394661685,1763835506723,-300.0,6.35e-05,2]
[394661686,1763835506748,-300.0,6.351e-05,2]
[394661687,1763835506772,-291.0,6.351e-05,2]
[394661688,1763835506801,-300.0,6.351e-05,2]
[394661689,1763835506826,-1200.0,6.351e-05,2]
[394661690,1763835506852,-1200.0,6.351e-05,2]
[394661691,1763835506881,-500.0,6.352e-05,2]
[394661692,1763835506910,-500.0,6.352e-05,2]
[394661693,1763835506938,-500.0,6.352e-05,2]
[394661694,1763835506966,-500.0,6.352e-05,2]
[394661695,1763835506994,-500.0,6.352e-05,2]
[394661696,1763835507021,-500.0,6.352e-05,2]
[394661697,1763835507049,-500.0,6.352e-05,2]
[394661698,1763835507077,-500.0,6.352e-05,2]
[394661699,1763835507105,-500.0,6.352e-05,2]
[394661700,1763835507132,-500.0,6.352e-05,2]
[394661701,1763835507161,-500.0,6.352e-05,2]
[394661702,1763835507189,-500.0,6.352e-05,2]
[394661703,1763835507216,-257.32795496,6.352e-05,2]
[394661704,1763835507247,-500.0,6.352e-05,2]
[394661705,1763835507278,-500.0,6.352e-05,2]
[394661706,1763835507306,-500.0,6.352e-05,2]
[394661707,1763835507336,-500.0,6.352e-05,2]
[394661708,1763835507368,-500.0,6.352e-05,2]
[394661709,1763835507398,-500.0,6.352e-05,2]
[394661710,1763835507427,-500.0,6.352e-05,2]
[394661711,1763835507457,-500.0,6.352e-05,2]
[394661712,1763835507486,-500.0,6.352e-05,2]
[394661713,1763835507514,-500.0,6.352e-05,2]
[394661714,1763835507543,-500.0,6.352e-05,2]
[394661715,1763835507572,-500.0,6.352e-05,2]
[394661716,1763835507602,-500.0,6.352e-05,2]
[394661717,1763835507630,-500.0,6.352e-05,2]
[394661718,1763835507658,-500.0,6.352e-05,2]
[394661719,1763835507686,-500.0,6.352e-05,2]
[394661720,1763835507713,-500.0,6.352e-05,2]
[394661721,1763835507740,-500.0,6.352e-05,2]
[394661722,1763835507768,-500.0,6.352e-05,2]
[394661723,1763835507795,-500.0,6.352e-05,2]
[394661724,1763835507823,-500.0,6.352e-05,2]
[394661725,1763835507852,-500.0,6.352e-05,2]
[394661726,1763835507879,-500.0,6.352e-05,2]
[394661727,1763835507906,-500.0,6.352e-05,2]
[394661728,1763835507936,-500.0,6.352e-05,2]
[394661729,1763835507965,-500.0,6.352e-05,2]
[394661730,1763835507995,-500.0,6.352e-05,2]
[394661731,1763835508026,-168.228954,6.352e-05,2]
[394661732,1763835508274,-166.88939201,6.352e-05,2]
[394661733,1763835508290,-164.88165399,6.352e-05,2]
[394661734,1763835508301,-2.00773802,6.352e-05,2]
[394661735,1763835508312,-150.0,6.352e-05,2]
[394661736,1763835508324,-166.88939201,6.352e-05,2]
[394661737,1763835508506,-166.88939201,6.352e-05,2]
[394661738,1763835508518,-14.21347796,6.352e-05,2]
[394661739,1763835508527,-485.78652204,6.352e-05,2]
[394661740,1763835508540,-14.21347796,6.352e-05,2]
[394661741,1763835508550,-285.78652204,6.352e-05,2]
[394661742,1763835508560,-214.21347796,6.352e-05,2]
[394661743,1763835508571,-85.78652204,6.352e-05,2]
[394661744,1763835508596,-291.0,6.352e-05,2]
[394661745,1763835508607,-123.21347796,6.352e-05,2]
[394661746,1763835508616,-176.78652204,6.352e-05,2]
[394661747,1763835508628,-323.21347796,6.352e-05,2]
[394661748,1763835508640,-500.0,6.352e-05,2]
[394661749,1763835508649,-376.78652204,6.352e-05,2]
[394661750,1763835508661,-123.21347796,6.352e-05,2]
[394661751,1763835508671,-500.0,6.352e-05,2]
[394661752,1763835508684,-253.81088046,6.352e-05,2]
[394661753,1763835508694,-322.97564158,6.352e-05,2]
[394661754,1763835508706,-177.02435842,6.352e-05,2]
[394661755,1763835508715,-322.97564158,6.352e-05,2]
[394661756,1763835508726,-177.02435842,6.352e-05,2]
[394661757,1763835508737,-285.36142581,6.352e-05,2]
[394661758,1763835508746,-37.61421577,6.353e-05,2]
[394661759,1763835508761,-500.0,6.353e-05,2]
[394661760,1763835508773,-500.0,6.353e-05,2]
[394661761,1763835508783,-500.0,6.353e-05,2]
[394661762,1763835508799,-500.0,6.353e-05,2]
[394661763,1763835508813,-500.0,6.353e-05,2]
[394661764,1763835508828,-500.0,6.353e-05,2]
[394661765,1763835508839,-500.0,6.353e-05,2]
[394661766,1763835508850,-500.0,6.353e-05,2]
[394661767,1763835508861,-500.0,6.353e-05,2]
[394661768,1763835508876,-500.0,6.353e-05,2]
[394661769,1763835508887,-257.32795496,6.353e-05,2]
[394661770,1763835508903,-500.0,6.353e-05,2]
[394661771,1763835508914,-500.0,6.353e-05,2]
[394661772,1763835508930,-500.0,6.353e-05,2]
[394661773,1763835508945,-500.0,6.353e-05,2]
[394661774,1763835508956,-500.0,6.353e-05,2]
[394661775,1763835508966,-500.0,6.353e-05,2]
[394661776,1763835508981,-500.0,6.353e-05,2]
[394661777,1763835508991,-500.0,6.353e-05,2]
[394661778,1763835509006,-500.0,6.353e-05,2]
[394661779,1763835509017,-500.0,6.353e-05,2]
[394661780,1763835509032,-500.0,6.353e-05,2]
[394661781,1763835509047,-500.0,6.353e-05,2]
[394661782,1763835509059,-500.0,6.353e-05,2]
[394661783,1763835509069,-500.0,6.353e-05,2]
[394661784,1763835509080,-500.0,6.353e-05,2]
[394661785,1763835509093,-500.0,6.353e-05,2]
[394661786,1763835509104,-500.0,6.353e-05,2]
[394661787,1763835509118,-500.0,6.353e-05,2]
[394661788,1763835509133,-500.0,6.353e-05,2]
[394661789,1763835509149,-500.0,6.353e-05,2]
[394661790,1763835509160,-500.0,6.353e-05,2]
[394661791,1763835509170,-500.0,6.353e-05,2]
[394661792,1763835509181,-500.0,6.353e-05,2]
[394661793,1763835509191,-500.0,6.353e-05,2]
[394661794,1763835509202,-500.0,6.353e-05,2]
[394661795,1763835509212,-500.0,6.353e-05,2]
[394661796,1763835509230,-500.0,6.353e-05,2]
[394661797,1763835509240,-500.0,6.353e-05,2]
[394661798,1763835571480,-2217.57619752,6.289e-05,2]
[394661799,1763835571505,-275.08034466,6.333e-05,2]
[394661800,1763835571529,-300.0,6.352e-05,2]
[394661801,1763835571548,-2217.57619752,6.353e-05,2]
[394661802,1763835571559,-275.08034466,6.353e-05,2]
[394661803,1763835571569,-300.0,6.353e-05,2]
[394661804,1763835571580,-44414.68691564,6.353e-05,2]
[394661806,1763835799800,-700.02582707,6.164e-05,2]
[394661807,1763835801509,-500.0,6.164e-05,2]
[394661808,1763835803173,-195.0399207,6.164e-05,2]
[394661809,1763835805305,-500.0,6.164e-05,2]
[394661810,1763835806827,-500.0,6.164e-05,2]
[394661811,1763835808841,-500.0,6.164e-05,2]
[394661812,1763835811624,-161.78450181,6.164e-05,2]
[394661813,1763835811646,-338.21549819,6.226e-05,2]
[394661814,1763835815119,-500.0,6.226e-05,2]
[394661815,1763835817985,-500.0,6.226e-05,2]
[394661816,1763835949693,1718.63475139,6.164e-05,2]
[394661817,1763835957742,1718.63475139,6.164e-05,2]
[394661819,1763835981727,438.09541828,6.067e-05,2]
[394661820,1763835994622,-438.09541828,6.128e-05,2]
[394661821,1763835996547,438.09541828,6.067e-05,2]
[394661822,1763836004312,438.09541828,6.128e-05,2]
[394661823,1763836009860,-438.09541828,6.19e-05,2]
[394661824,1763836009888,-199.75299807,6.252e-05,2]
[394661825,1763836009922,-500.0,6.252e-05,2]
[394661826,1763836009956,-500.0,6.252e-05,2]
[394661827,1763836009989,-500.0,6.252e-05,2]
[394661828,1763836010023,-500.0,6.252e-05,2]
[394661829,1763836010057,-179.62854483,6.252e-05,2]
[394661830,1763836010089,-500.0,6.252e-05,2]
[394661831,1763836010122,-500.0,6.252e-05,2]
[394661832,1763836010156,-500.0,6.252e-05,2]
[394661833,1763836010189,-500.0,6.252e-05,2]
[394661834,1763836010417,-500.0,6.252e-05,2]
[394661835,1763836010455,-500.0,6.252e-05,2]
[394661836,1763836010489,-500.0,6.252e-05,2]
[394661837,1763836010522,-500.0,6.252e-05,2]
[394661838,1763836010557,-500.0,6.252e-05,2]
[394661839,1763836010594,-500.0,6.252e-05,2]
[394661840,1763836010632,-500.0,6.252e-05,2]
[394661841,1763836010667,-500.0,6.252e-05,2]
[394661842,1763836010700,-500.0,6.252e-05,2]
[394661843,1763836010733,-500.0,6.252e-05,2]
[394661844,1763836010840,-500.0,6.252e-05,2]
[394661845,1763836010868,-300.0,6.252e-05,2]
[394661846,1763836015218,500.0,6.252e-05,2]
[394661847,1763836015262,500.0,6.252e-05,2]
[394661848,1763836015319,500.0,6.252e-05,2]
[394661849,1763836015375,230.66915185,6.252e-05,2]
[394661850,1763836019945,2569.14279871,6.19e-05,2]
[394661851,1763836027678,4100.19804944,6.19e-05,2]
[394661852,1763836027701,10000.01,6.19e-05,2]
[394661853,1763836027724,6144.97292411,6.19e-05,2]
[394661858,1763836042702,417.49779784,6.19e-05,2]
[394661859,1763836061671,500.0,6.252e-05,2]
[394661860,1763836061701,571.31525221,6.252e-05,2]
[394661861,1763836061730,500.0,6.252e-05,2]
[394661862,1763836061764,500.0,6.252e-05,2]
[394661863,1763836061803,500.0,6.252e-05,2]
[394661864,1763836061837,500.0,6.252e-05,2]
[394661865,1763836061867,366.22402584,6.252e-05,2]
[394661866,1763836061889,27.26431597,6.252e-05,2]
[394661867,1763836061919,500.0,6.252e-05,2]
[394661868,1763836061948,500.0,6.252e-05,2]
[394661869,1763836061990,500.0,6.252e-05,2]
[394661870,1763836062023,476.77055575,6.252e-05,2]
[394661871,1763836062056,200.0,6.252e-05,2]
[394661872,1763836062092,500.0,6.252e-05,2]
[394661873,1763836069640,1200.0,6.252e-05,2]
[394661877,1763836086462,150.0,6.19e-05,2]
[394661878,1763836106479,500.0,6.252e-05,2]
[394661879,1763836106524,571.31525221,6.252e-05,2]
[394661880,1763836106947,500.0,6.252e-05,2]
[394661881,1763836107023,500.0,6.252e-05,2]
[394661882,1763836107332,500.0,6.252e-05,2]
[394661883,1763836108319,500.0,6.252e-05,2]
[394661884,1763836108600,500.0,6.252e-05,2]
[394661885,1763836108631,500.0,6.252e-05,2]
[394661886,1763836108666,500.0,6.252e-05,2]
[394661887,1763836108697,500.0,6.252e-05,2]
[394661888,1763836108728,500.0,6.252e-05,2]
[394661889,1763836108763,374.65987607,6.252e-05,2]
[394661890,1763836108790,125.34012393,6.252e-05,2]
[394661891,1763836108829,500.0,6.252e-05,2]
[394661892,1763836108867,150.0,6.19e-05,2]
[394661895,1763836117589,500.0,6.252e-05,2]
[394661896,1763836117627,500.0,6.252e-05,2]
[394661897,1763836117662,500.0,6.252e-05,2]
[394661898,1763836117701,500.0,6.252e-05,2]
[394661899,1763836117739,500.0,6.252e-05,2]
[394661900,1763836117781,500.0,6.252e-05,2]
[394661901,1763836117816,500.0,6.252e-05,2]
[394661902,1763836117851,500.0,6.252e-05,2]
[394661903,1763836117886,500.0,6.252e-05,2]
[394661904,1763836117925,500.0,6.252e-05,2]
[394661905,1763836117960,500.0,6.252e-05,2]
[394661906,1763836117998,500.0,6.252e-05,2]
[394661907,1763836118036,500.0,6.252e-05,2]
[394661908,1763836118080,500.0,6.252e-05,2]
[394661909,1763836118117,500.0,6.252e-05,2]
[394661910,1763836118152,500.0,6.252e-05,2]
[394661911,1763836118216,500.0,6.252e-05,2]
[394661912,1763836118301,500.0,6.252e-05,2]
[394661913,1763836118352,224.66987607,6.252e-05,2]
[394661914,1763836118379,275.33012393,6.252e-05,2]
[394661915,1763836118420,500.0,6.252e-05,2]
[394661916,1763836118460,500.0,6.252e-05,2]
[394661917,1763836118499,500.0,6.252e-05,2]
[394661918,1763836118546,500.0,6.252e-05,2]
[394661919,1763836118581,500.0,6.252e-05,2]
[394661920,1763836118617,500.0,6.252e-05,2]
[394661921,1763836118652,500.0,6.252e-05,2]
[394661922,1763836118687,500.0,6.252e-05,2]
[394661923,1763836118725,500.0,6.252e-05,2]
[394661924,1763836118760,500.0,6.252e-05,2]
[394661925,1763836118797,370.35440303,6.252e-05,2]
[394661926,1763836118837,500.0,6.252e-05,2]
[394661927,1763836118876,500.0,6.252e-05,2]
[394661928,1763836118912,500.0,6.252e-05,2]
[394661929,1763836118946,500.0,6.252e-05,2]
[394661930,1763836118989,500.0,6.252e-05,2]
[394661931,1763836119028,500.0,6.252e-05,2]
[394661932,1763836119063,500.0,6.252e-05,2]
[394661933,1763836119105,500.0,6.252e-05,2]
[394661934,1763836119143,354.32547304,6.252e-05,2]
[394661935,1763836119172,145.67452696,6.252e-05,2]
[394661936,1763836119213,500.0,6.252e-05,2]
[394661937,1763836119248,500.0,6.252e-05,2]
[394661938,1763836119292,500.0,6.252e-05,2]
[394661939,1763836119335,500.0,6.252e-05,2]
[394661940,1763836119370,500.0,6.252e-05,2]
[394661941,1763836119405,500.0,6.252e-05,2]
[394661942,1763836119465,500.0,6.252e-05,2]
[394661943,1763836119500,500.0,6.252e-05,2]
[394661944,1763836119551,500.0,6.252e-05,2]
[394661945,1763836119588,500.0,6.252e-05,2]
[394661946,1763836119638,500.0,6.252e-05,2]
[394661947,1763836119679,500.0,6.252e-05,2]
[394661948,1763836119720,500.0,6.252e-05,2]
[394661949,1763836119755,500.0,6.252e-05,2]
[394661950,1763836119798,500.0,6.252e-05,2]
[394661951,1763836136190,500.0,6.252e-05,2]
[394661952,1763836136224,500.0,6.252e-05,2]
[394661953,1763836136263,500.0,6.252e-05,2]
[394661954,1763836136297,500.0,6.252e-05,2]
[394661955,1763836136360,500.0,6.252e-05,2]
[394661956,1763836136398,500.0,6.252e-05,2]
[394661957,1763836136440,500.0,6.252e-05,2]
[394661958,1763836136473,500.0,6.252e-05,2]
[394661959,1763836136506,500.0,6.252e-05,2]
[394661960,1763836136543,500.0,6.252e-05,2]
[394661961,1763836136579,500.0,6.252e-05,2]
[394661962,1763836136620,500.0,6.252e-05,2]
[394661963,1763836136655,500.0,6.252e-05,2]
[394661964,1763836136691,500.0,6.252e-05,2]
[394661965,1763836136723,500.0,6.252e-05,2]
[394661966,1763836136759,273.50437483,6.252e-05,2]
[394661967,1763836136822,500.0,6.252e-05,2]
[394661968,1763836136857,500.0,6.252e-05,2]
[394661969,1763836136897,500.0,6.252e-05,2]
[394661970,1763836136930,500.0,6.252e-05,2]
[394661971,1763836136968,226.50562517,6.252e-05,2]
[394661972,1763836136994,273.49437483,6.252e-05,2]
[394661973,1763836137029,500.0,6.252e-05,2]
[394661974,1763836137063,500.0,6.252e-05,2]
[394661975,1763836137096,500.0,6.252e-05,2]
[394661976,1763836137130,500.0,6.252e-05,2]
[394661977,1763836137166,500.0,6.252e-05,2]
[394661978,1763836137203,500.0,6.252e-05,2]
[394661979,1763836137239,500.0,6.252e-05,2]
[394661980,1763836137274,500.0,6.252e-05,2]
[394661981,1763836137309,500.0,6.252e-05,2]
[394661982,1763836137348,500.0,6.252e-05,2]
[394661983,1763836137382,500.0,6.252e-05,2]
[394661984,1763836137419,500.0,6.252e-05,2]
[394661985,1763836137453,500.0,6.252e-05,2]
[394661986,1763836137907,500.0,6.252e-05,2]
[394661987,1763836137944,500.0,6.252e-05,2]
[394661988,1763836137981,500.0,6.252e-05,2]
[394661989,1763836138014,500.0,6.252e-05,2]
[394661990,1763836138048,500.0,6.252e-05,2]
[394661991,1763836138081,500.0,6.252e-05,2]
[394661992,1763836138122,226.51562517,6.252e-05,2]
[394661993,1763836138149,273.48437483,6.252e-05,2]
[394661994,1763836138181,500.0,6.252e-05,2]
[394661995,1763836138214,500.0,6.252e-05,2]
[394661996,1763836138252,500.0,6.252e-05,2]
[394661997,1763836138290,500.0,6.252e-05,2]
[394661998,1763836138322,500.0,6.252e-05,2]
[394661999,1763836138359,500.0,6.252e-05,2]
[394662000,1763836138391,500.0,6.252e-05,2]
[394662001,1763836138435,500.0,6.252e-05,2]
[394662002,1763836138469,500.0,6.252e-05,2]
[394662003,1763836138502,500.0,6.252e-05,2]
[394662004,1763836138543,500.0,6.252e-05,2]
[394662005,1763836138580,500.0,6.252e-05,2]
[394662006,1763836138663,500.0,6.252e-05,2]
[394662007,1763836138701,500.0,6.252e-05,2]
[394662008,1763836138736,500.0,6.252e-05,2]
[394662009,1763836138772,500.0,6.252e-05,2]
[394662010,1763836138809,500.0,6.252e-05,2]
[394662011,1763836138859,500.0,6.252e-05,2]
[394662012,1763836138901,500.0,6.252e-05,2]
[394662013,1763836138944,226.52562517,6.252e-05,2]
[394662014,1763836138968,273.47437483,6.252e-05,2]
[394662015,1763836139004,500.0,6.252e-05,2]
[394662016,1763836139041,500.0,6.252e-05,2]
[394662017,1763836139080,500.0,6.252e-05,2]
[394662018,1763836143184,300.0,6.252e-05,2]